[Event "-chT Youth Countries 2019"]
[Site "Wuerzburg"]
[Date "2019.10.06"]
[Round "7.6"]
[White "Butenandt, Svenja"]
[Black "Grining, Maria"]
[Result "1/2-1/2"]
[ECO "A52"]
[WhiteElo "1805"]
[BlackElo "1801"]
[Annotator "NA"]
[PlyCount "40"]
[EventDate "2019.10.02"]
[EventType "team-tourn"]
[EventRounds "7"]
[EventCountry "GER"]
[SourceTitle "playchess.com"]
[Source "ChessBase"]
[SourceQuality "1"]
[WhiteTeam "Bayern 2"]
[BlackTeam "Baden 2"]
[TimeControl "40/5400+30:1800+30"]

1. d4 {[%emt 0:00:00]} Nf6 {[%emt 0:00:00]} 2. c4 {[%emt 0:00:00]} e5 {[%emt 0:00:00]} 3. dxe5 {[%emt 0:00:00]} Ng4 {[%emt 0:00:00]} 4. e3 {[%emt 0:00:00]} Nxe5 {[%emt 0:00:26]} 5. Nh3 {[%emt 0:00:19]} Nbc6 {[%emt 0:01:41]} 6. Nf4 {[%emt 0:00:50]} Bb4+ {[%emt 0:00:40]} 7. Bd2 {[%emt 0:00:18]} Bxd2+ {[%emt 0:00:52]} 8. Qxd2 {[%emt 0:00:27]} d6 {[%emt 0:02:02]} 9. Nc3 {[%emt 0:00:54]} Bg4 {[%emt 0:05:42]} 10. h3 {[%emt 0:04:37]} Qh4 {[%emt 0:11:16]} 11. Nb5 {[%emt 0:12:56]} O-O-O {[%emt 0:09:02]} 12. Nd5 {[%emt 0:18:23]} Rd7 {[%emt 0:01:45]} 13. b4 {[%emt 0:05:08]} Be6 {[%emt 0:05:21]} 14. Nbxc7 {[%emt 0:08:06]} Rxc7 {[%emt 0:16:12]} 15. Nxc7 {[%emt 0:00:25]} Kxc7 {[%emt 0:02:09]} 16. b5 {[%emt 0:00:40]} Nd8 {[%emt 0:01:44]} 17. Rd1 {[%emt 0:03:16]} Qe7 {[%emt 0:03:50]} 18. Qa5+ {[%emt 0:08:36]} Kb8 {[%emt 0:03:38]} 19. Qb4 {[%emt 0:03:01]} Kc7 {[%emt 0:02:20]} 20. Qa5+ {[%emt 0:00:08]} Kb8 {normal} 1/2-1/2

[Event "-chT Youth Countries 2019"]
[Site "Wuerzburg"]
[Date "2019.10.06"]
[Round "7.6"]
[White "Ermitsch, Magnus"]
[Black "Dietz, Kristin"]
[Result "1-0"]
[ECO "B42"]
[WhiteElo "1671"]
[BlackElo "1948"]
[Annotator "NA"]
[PlyCount "50"]
[EventDate "2019.10.02"]
[EventType "team-tourn"]
[EventRounds "7"]
[EventCountry "GER"]
[SourceTitle "playchess.com"]
[Source "ChessBase"]
[SourceQuality "1"]
[WhiteTeam "Berlin"]
[BlackTeam "Sachsen-Anhalt"]
[TimeControl "40/5400+30:1800+30"]

1. e4 {[%emt 0:00:00]} c5 {[%emt 0:00:00]} 2. Nf3 {[%emt 0:00:25]} e6 {[%emt 0:00:00]} 3. d4 {[%emt 0:00:31]} cxd4 {[%emt 0:00:01]} 4. Nxd4 {[%emt 0:00:42]} a6 {[%emt 0:00:12]} 5. Bd3 {[%emt 0:01:27]} g6 {[%emt 0:00:25]} 6. O-O {[%emt 0:06:57]} Bg7 {[%emt 0:00:14]} 7. Nb3 {[%emt 0:01:39]} Nc6 {[%emt 0:00:33] unterminated} 8. f4 {[%emt 0:02:44] B42: Sicilian: Kan Variation: 5 Bd3} Nge7 {[%emt 0:02:07] unterminated} 9. f5 $146 {[%emt 0:02:12] unterminated} ({Predecessor:} 9. N1d2 O-O 10. Nf3 d6 11. c3 b5 12. Be3 b4 13. Rc1 bxc3 14. bxc3 a5 15. Qe2 Bb7 16. Kh1 a4 17. Nbd4 e5 {½-½ (17) Mamedov,R (2584)-Milov,V (2676) Baku 2007}) 9... Ng8 {[%emt 0:11:15] unterminated} 10. Bf4 {[%emt 0:10:34]} e5 {[%emt 0:00:57] unterminated} (10... Bxb2 $11 11. N1d2 Bxa1 12. Qxa1 f6) 11. Be3 {[%emt 0:03:16]} Nf6 {[%emt 0:01:16] unterminated} 12. fxg6 {[%emt 0:03:54]} hxg6 {[%emt 0:01:39] unterminated} 13. Bg5 {[%emt 0:00:58]} Qb6+ {[%emt 0:09:34]} 14. Kh1 {[%emt 0:00:18]} Nh5 {[%emt 0:00:45]} 15. Qf3 {[%emt 0:02:45]} f6 {[%emt 0:00:45]} 16. Be3 {[%emt 0:02:01]} Nd4 {[%emt 0:02:28]} 17. Bxd4 {[%emt 0:06:02]} exd4 {[%emt 0:00:07]} 18. N1d2 {[%emt 0:01:36]} Qc7 {[%emt 0:01:05] unterminated} 19. e5 {[%emt 0:02:19]} f5 {[%emt 0:00:18]} 20. Nc4 {[%emt 0:03:10] unterminated} O-O {[%emt 0:03:40] unterminated} 21. g4 {[%emt 0:04:03] unterminated} b5 {[%emt 0:22:14]} 22. Nd6 $18 {[%emt 0:00:23]} ({Not} 22. gxh5 $2 Bb7 $19) 22... Qc6 {[%emt 0:00:51]} 23. Qxc6 {[%emt 0:00:48]} dxc6 {[%emt 0:00:06]} 24. Nxc8 {[%emt 0:00:28]} Raxc8 {[%emt 0:00:13]} 25. gxh5 {[%emt 0:00:31]} Bxe5 {[%emt 0:01:29] normal} 1-0

[Event "-chT Youth Countries 2019"]
[Site "Wuerzburg"]
[Date "2019.10.06"]
[Round "7.6"]
[White "Schwartz, Oliver"]
[Black "Fuchs, Emily"]
[Result "1-0"]
[ECO "C50"]
[WhiteElo "1650"]
[BlackElo "1490"]
[Annotator "NA"]
[PlyCount "124"]
[EventDate "2019.10.02"]
[EventType "team-tourn"]
[EventRounds "7"]
[EventCountry "GER"]
[SourceTitle "playchess.com"]
[Source "ChessBase"]
[SourceQuality "1"]
[WhiteTeam "Württemberg"]
[BlackTeam "Saarland"]
[TimeControl "40/5400+30:1800+30"]

1. e4 {[%emt 0:00:00]} e5 {[%emt 0:00:00]} 2. Nf3 {[%emt 0:00:00]} Nc6 {[%emt 0:00:00]} 3. Bc4 {[%emt 0:00:00]} Nf6 {[%emt 0:00:00]} 4. d3 {[%emt 0:00:00]} Bc5 {[%emt 0:00:00]} 5. c3 {[%emt 0:00:06]} d6 {[%emt 0:00:25]} 6. Bb3 {[%emt 0:00:34]} Be6 {[%emt 0:01:52]} 7. h3 {[%emt 0:07:32]} h6 {[%emt 0:07:12]} 8. Nbd2 {[%emt 0:02:23]} Qd7 {[%emt 0:05:13]} 9. Nf1 {[%emt 0:26:29]} d5 {[%emt 0:17:44]} 10. Ng3 {[%emt 0:19:44]} dxe4 {[%emt 0:06:57]} 11. dxe4 {[%emt 0:00:31]} Qxd1+ {[%emt 0:03:53]} 12. Bxd1 {[%emt 0:00:21]} O-O-O {[%emt 0:04:37]} 13. Bb3 {[%emt 0:10:34]} Rd6 {[%emt 0:10:59]} 14. Bxe6+ {[%emt 0:02:46]} Rxe6 {[%emt 0:00:52]} 15. O-O {[%emt 0:07:12]} Rd8 {[%emt 0:05:56]} 16. Be3 {[%emt 0:06:19]} Bxe3 {[%emt 0:00:47]} 17. fxe3 {[%emt 0:00:01]} Na5 {[%emt 0:08:44]} 18. b3 {[%emt 0:01:17]} Rd3 {[%emt 0:01:05]} 19. Kf2 {[%emt 0:02:01]} Rxc3 {[%emt 0:01:48]} 20. Rac1 {[%emt 0:00:06]} Rxc1 21. Rxc1 Nc6 {[%emt 0:02:26]} 22. Ke2 {[%emt 0:01:44]} g6 {[%emt 0:01:50]} 23. Nd2 {[%emt 0:01:40]} h5 {[%emt 0:05:11]} 24. Rf1 {[%emt 0:01:39]} Kd7 {[%emt 0:01:54]} 25. Nh1 {[%emt 0:01:26]} Ke7 {[%emt 0:01:27]} 26. g3 {[%emt 0:00:27]} b5 {[%emt 0:03:57]} 27. Nf2 {[%emt 0:01:01]} a5 {[%emt 0:02:06]} 28. Nd3 {[%emt 0:00:30]} Nd7 {[%emt 0:00:28]} 29. Rc1 {[%emt 0:00:33]} Kd6 {[%emt 0:00:50]} 30. Nb1 {[%emt 0:01:02]} Na7 {[%emt 0:01:40]} 31. Nc3 {[%emt 0:00:48]} c6 {[%emt 0:01:25]} 32. Nb1 {[%emt 0:00:49]} f5 {[%emt 0:01:38]} 33. Nd2 {[%emt 0:00:24]} c5 {[%emt 0:01:04]} 34. Rf1 {[%emt 0:00:51]} Rf6 {[%emt 0:00:53]} 35. Nb2 {[%emt 0:01:28]} Ke6 {[%emt 0:00:48]} 36. exf5+ {[%emt 0:00:30]} gxf5 {[%emt 0:00:44]} 37. Nd1 {[%emt 0:00:20]} Nc6 {[%emt 0:00:41]} 38. Nc3 {[%emt 0:00:01]} b4 {[%emt 0:00:42]} 39. Na4 {[%emt 0:00:03]} Kd5 {[%emt 0:00:28]} 40. Nc4 {[%emt 0:00:47]} e4 {[%emt 0:00:49]} 41. Ncb6+ {[%emt 0:11:10]} Nxb6 {[%emt 0:00:35]} 42. Nxb6+ {[%emt 0:00:01]} Ke6 {[%emt 0:02:13]} 43. Na4 {[%emt 0:01:07]} Rg6 {[%emt 0:09:29]} 44. Nxc5+ {[%emt 0:01:52]} Ke5 {[%emt 0:01:28]} 45. Kf2 {[%emt 0:09:12]} Ne7 {[%emt 0:01:48]} 46. Nd7+ {[%emt 0:01:12]} Kd6 {[%emt 0:01:39]} 47. Rd1+ {[%emt 0:01:02]} Kc7 {[%emt 0:00:59]} 48. Ne5 {[%emt 0:01:19]} Re6 {[%emt 0:02:40]} 49. Nc4 {[%emt 0:00:55]} Rc6 {[%emt 0:00:59]} 50. Rd2 {[%emt 0:00:41]} Rc5 {[%emt 0:01:39]} 51. Nd6 {[%emt 0:03:10]} Ng6 {[%emt 0:05:36]} 52. Ne8+ {[%emt 0:01:06]} Kb6 {[%emt 0:02:32]} 53. Rd6+ {[%emt 0:01:35]} Rc6 {[%emt 0:00:14]} 54. Rxc6+ {[%emt 0:00:22]} Kxc6 {[%emt 0:00:07]} 55. Ng7 {[%emt 0:00:06]} Ne5 {[%emt 0:01:57]} 56. Nxf5 {[%emt 0:01:01]} Nd3+ {[%emt 0:00:16]} 57. Kg2 {[%emt 0:00:39]} Nc1 {[%emt 0:00:26]} 58. g4 {[%emt 0:01:08]} hxg4 {[%emt 0:00:13]} 59. h4 {[%emt 0:01:11]} Nxa2 {[%emt 0:01:34]} 60. h5 {[%emt 0:00:24]} a4 {[%emt 0:00:28]} 61. h6 {[%emt 0:00:18]} axb3 {[%emt 0:01:11]} 62. Nd4+ {[%emt 0:00:04]} Kd6 {[%emt 0:00:32] normal} 1-0

[Event "-chT Youth Countries 2019"]
[Site "Wuerzburg"]
[Date "2019.10.06"]
[Round "7.6"]
[White "Pavlov, Liliane"]
[Black "Yaghi, Rita"]
[Result "0-1"]
[ECO "D30"]
[WhiteElo "1632"]
[BlackElo "1973"]
[Annotator "NA"]
[PlyCount "84"]
[EventDate "2019.10.02"]
[EventType "team-tourn"]
[EventRounds "7"]
[EventCountry "GER"]
[SourceTitle "playchess.com"]
[Source "ChessBase"]
[SourceQuality "1"]
[WhiteTeam "Team Süd"]
[BlackTeam "Hessen"]
[TimeControl "40/5400+30:1800+30"]

1. d4 {[%emt 0:00:00]} d5 {[%emt 0:00:00]} 2. c4 {[%emt 0:00:00]} e6 {[%emt 0:00:38]} 3. Nf3 {[%emt 0:00:00]} c6 {[%emt 0:00:28]} 4. g3 {[%emt 0:00:57]} dxc4 {[%emt 0:01:21]} 5. Bg2 {[%emt 0:00:08]} b5 {[%emt 0:01:10]} 6. Ne5 {[%emt 0:00:39]} Bb7 {[%emt 0:00:58]} 7. a4 {[%emt 0:01:37]} Qc8 {[%emt 0:02:22]} 8. b3 {[%emt 0:01:53]} cxb3 {[%emt 0:06:10]} 9. Qxb3 {[%emt 0:01:02]} a6 {[%emt 0:01:35]} 10. O-O {[%emt 0:07:29]} Nd7 {[%emt 0:05:26]} 11. Nd3 {[%emt 0:03:32]} Ngf6 {[%emt 0:06:01]} 12. Nc3 {[%emt 0:06:29]} Be7 {[%emt 0:04:47]} 13. Ba3 {[%emt 0:04:14]} Rb8 {[%emt 0:07:11]} 14. Bxe7 {[%emt 0:00:44]} Kxe7 {[%emt 0:00:03]} 15. Qa3+ {[%emt 0:00:48]} Ke8 {[%emt 0:02:15]} 16. Rfc1 {[%emt 0:04:14]} Qd8 {[%emt 0:00:30]} 17. Nb4 {[%emt 0:04:59]} a5 {[%emt 0:06:29]} 18. Bxc6 {[%emt 0:04:14]} axb4 {[%emt 0:01:32]} 19. Bxd7+ {[%emt 0:00:11]} Qxd7 {[%emt 0:08:22]} 20. Qxb4 {[%emt 0:00:17]} Nd5 {[%emt 0:01:17]} 21. Qxb5 {[%emt 0:01:29]} Nxc3 {[%emt 0:00:30]} 22. Qxd7+ {[%emt 0:00:19]} Kxd7 {[%emt 0:00:01]} 23. Rxc3 {[%emt 0:00:11]} Rhc8 {[%emt 0:00:09]} 24. Rd3 {[%emt 0:00:37]} Rc2 {[%emt 0:00:15]} 25. Kf1 {[%emt 0:01:49]} Ba6 {[%emt 0:00:13]} 26. Re3 {[%emt 0:00:10]} Rcb2 {[%emt 0:00:13]} 27. Rd1 {[%emt 0:02:57]} Rb1 {[%emt 0:00:15]} 28. Ke1 {[%emt 0:00:13]} Rxd1+ {[%emt 0:00:06]} 29. Kxd1 {[%emt 0:00:04]} Rb4 {[%emt 0:00:12]} 30. Re4 {[%emt 0:00:38]} Rxa4 {[%emt 0:01:10]} 31. e3 {[%emt 0:00:48]} Ra1+ {[%emt 0:00:19]} 32. Kd2 {[%emt 0:00:20]} Ra2+ {[%emt 0:00:07]} 33. Ke1 {[%emt 0:00:16]} Re2+ {[%emt 0:00:06]} 34. Kd1 {[%emt 0:00:07]} Rxf2 {[%emt 0:00:07]} 35. h4 {[%emt 0:00:20]} Bb7 {[%emt 0:00:23]} 36. Re5 {[%emt 0:00:31]} Rf5 {[%emt 0:01:25]} 37. Rxf5 {[%emt 0:00:26]} exf5 {[%emt 0:00:02]} 38. Ke2 {[%emt 0:00:14]} Ke6 {[%emt 0:00:02]} 39. Kf2 {[%emt 0:00:37]} Be4 {[%emt 0:01:07]} 40. Kg1 {[%emt 0:00:26]} Kd5 {[%emt 0:00:06]} 41. Kf2 {[%emt 0:30:18]} Kc4 {[%emt 0:30:12]} 42. Ke2 {[%emt 0:00:50]} Kc3 {[%emt 0:00:07] normal} 0-1

[Event "-chT Youth Countries 2019"]
[Site "Wuerzburg"]
[Date "2019.10.06"]
[Round "7.6"]
[White "Grabs, Peter"]
[Black "Reuter, Elisa"]
[Result "1/2-1/2"]
[ECO "B31"]
[WhiteElo "1592"]
[BlackElo "1873"]
[Annotator "NA"]
[PlyCount "77"]
[EventDate "2019.10.02"]
[EventType "team-tourn"]
[EventRounds "7"]
[EventCountry "GER"]
[SourceTitle "playchess.com"]
[Source "ChessBase"]
[SourceQuality "1"]
[WhiteTeam "Brandenburg/Berlin"]
[BlackTeam "Thüringen"]
[TimeControl "40/5400+30:1800+30"]

1. e4 {[%emt 0:00:00]} c5 {[%emt 0:00:00]} 2. Nf3 {[%emt 0:00:00]} Nc6 {[%emt 0:00:00]} 3. Bb5 {[%emt 0:00:00]} g6 {[%emt 0:00:00]} 4. O-O {[%emt 0:00:00]} Bg7 {[%emt 0:00:00]} 5. Re1 {[%emt 0:00:04]} e5 {[%emt 0:00:20]} 6. Nc3 {[%emt 0:03:27]} Nge7 {[%emt 0:02:42]} 7. a3 {[%emt 0:02:36]} O-O {[%emt 0:01:05]} 8. d3 {[%emt 0:00:26]} d6 {[%emt 0:01:25]} 9. h3 {[%emt 0:00:14]} h6 {[%emt 0:01:20]} 10. Bd2 {[%emt 0:05:36]} Bd7 11. Kh2 {[%emt 0:04:45]} f5 {[%emt 0:07:05]} 12. Qc1 {[%emt 0:09:59]} Kh7 {[%emt 0:01:18]} 13. Bc4 {[%emt 0:05:24]} f4 {[%emt 0:01:23]} 14. Rf1 {[%emt 0:01:04]} g5 {[%emt 0:00:55]} 15. g4 {[%emt 0:01:22]} Ng6 {[%emt 0:05:28]} 16. Ne2 {[%emt 0:08:26]} Qc8 {[%emt 0:05:47]} 17. Rg1 {[%emt 0:05:30]} Nce7 {[%emt 0:02:42]} 18. Qe1 {[%emt 0:01:30]} Bc6 {[%emt 0:00:47]} 19. Nc3 {[%emt 0:01:04]} Qd7 {[%emt 0:03:21]} 20. Nd5 {[%emt 0:01:22]} Ng8 {[%emt 0:09:55]} 21. b4 {[%emt 0:10:11]} Bxd5 {[%emt 0:04:02]} 22. Bxd5 {[%emt 0:01:03]} Nf6 {[%emt 0:01:45]} 23. c4 {[%emt 0:00:49]} Nxd5 {[%emt 0:00:56]} 24. exd5 {[%emt 0:00:34]} e4 {[%emt 0:04:39]} 25. dxe4 {[%emt 0:01:12]} Bxa1 {[%emt 0:00:16]} 26. Qxa1 {[%emt 0:00:05]} b6 {[%emt 0:01:05]} 27. Re1 {[%emt 0:02:32]} Rae8 {[%emt 0:01:18]} 28. Bc3 {[%emt 0:00:50]} Qc7 {[%emt 0:15:35]} 29. e5 {[%emt 0:03:20]} dxe5 {[%emt 0:01:37]} 30. Nxe5 {[%emt 0:00:17]} Nxe5 {[%emt 0:05:27]} 31. Bxe5 {[%emt 0:00:08]} Qf7 {[%emt 0:01:50]} 32. Bd6 {[%emt 0:09:28]} Rxe1 {[%emt 0:03:30]} 33. Qxe1 {[%emt 0:00:09]} Re8 {[%emt 0:00:08]} 34. Qb1+ {[%emt 0:00:05]} Qg6 {[%emt 0:03:27]} 35. Qxg6+ {[%emt 0:01:20]} Kxg6 {[%emt 0:00:04]} 36. bxc5 {[%emt 0:00:08]} bxc5 {[%emt 0:00:04]} 37. Bxc5 {[%emt 0:00:09]} a6 {[%emt 0:01:11]} 38. Bb6 {[%emt 0:05:04]} Kf7 {[%emt 0:00:39]} 39. d6 {[%emt 0:09:14] normal} 1/2-1/2

[Event "-chT Youth Countries 2019"]
[Site "Wuerzburg"]
[Date "2019.10.06"]
[Round "7.7"]
[White "Bardorz, Jana"]
[Black "Bungarten, Jona"]
[Result "1-0"]
[ECO "C60"]
[WhiteElo "1929"]
[BlackElo "1669"]
[Annotator "NA RC"]
[PlyCount "33"]
[EventDate "2019.10.02"]
[EventType "team-tourn"]
[EventRounds "7"]
[EventCountry "GER"]
[SourceTitle "playchess.com"]
[Source "ChessBase"]
[SourceQuality "1"]
[WhiteTeam "Bayern 1"]
[BlackTeam "Nordrhein-Westfalen"]
[TimeControl "40/5400+30:1800+30"]

1. e4 {[%emt 0:00:00]} e5 {[%emt 0:00:00]} 2. Nf3 {[%emt 0:00:00]} Nc6 {[%emt 0:00:00]} 3. Bb5 {[%emt 0:00:00]} Nge7 {[%emt 0:00:00]} 4. Nc3 {[%emt 0:00:00]} g6 {[%emt 0:01:27]} 5. d4 {[%emt 0:00:05]} exd4 {[%emt 0:00:16]} 6. Nd5 {[%emt 0:00:17]} Bg7 {[%emt 0:00:12]} 7. Bg5 {[%emt 0:00:16]} h6 {[%emt 0:00:08]} 8. Bf6 {[%emt 0:00:06]} Bxf6 {[%emt 0:00:05]} 9. Nxf6+ {[%emt 0:00:05]} Kf8 {[%emt 0:00:03] unterminated} 10. Qd2 {[%emt 0:03:13] unterminated} d6 {[%emt 0:06:01] unterminated} 11. O-O-O {[%emt 0:02:04]} Kg7 {[%emt 0:01:22] unterminated} 12. Nxd4 {[%emt 0:05:48]} Ne5 {[%emt 0:02:15] [#] unterminated} ({Reject} 12... Kxf6 $6 13. Qc3 $11) 13. f4 $16 {[%emt 0:09:52]} Kxf6 {[%emt 0:02:17]} 14. fxe5+ {[%emt 0:02:34]} dxe5 {[%emt 0:01:17]} 15. Qf2+ {[%emt 0:04:08]} Kg7 {[%emt 0:11:31]} 16. Nf5+ {[%emt 0:02:34]} Bxf5 {[%emt 0:00:51]} 17. Rxd8 {[%emt 0:01:05] normal} 1-0

[Event "-chT Youth Countries 2019"]
[Site "Wuerzburg"]
[Date "2019.10.06"]
[Round "7.7"]
[White "Kempe, Caius Emilian"]
[Black "Yue, Qizhou"]
[Result "1-0"]
[ECO "E20"]
[WhiteElo "1835"]
[BlackElo "1810"]
[Annotator "NA"]
[PlyCount "111"]
[EventDate "2019.10.02"]
[EventType "team-tourn"]
[EventRounds "7"]
[EventCountry "GER"]
[SourceTitle "playchess.com"]
[Source "ChessBase"]
[SourceQuality "1"]
[WhiteTeam "Sachsen"]
[BlackTeam "Rheinland-Pfalz"]
[TimeControl "40/5400+30:1800+30"]

1. d4 {[%emt 0:00:00]} Nf6 {[%emt 0:00:00]} 2. c4 {[%emt 0:00:00]} e6 {[%emt 0:00:00]} 3. Nc3 {[%emt 0:00:00]} Bb4 {[%emt 0:00:00]} 4. f3 {[%emt 0:00:00]} d5 {[%emt 0:00:45]} 5. a3 {[%emt 0:00:00]} Bxc3+ {[%emt 0:01:12]} 6. bxc3 {[%emt 0:00:00]} c6 {[%emt 0:02:45]} 7. e3 {[%emt 0:02:09]} O-O {[%emt 0:01:19] E20: Nimzo-Indian: 4 g3 and 4 f3} 8. Bd3 {[%emt 0:05:36]} c5 $146 {[%emt 0:07:45]} ({Predecessor:} 8... Re8 9. Ne2 e5 10. cxd5 cxd5 11. dxe5 Rxe5 12. O-O Nc6 13. Nd4 Re8 14. Bc2 Ne5 15. Qe1 {0-1 (33) Naroditsky,D (2616)-Sargissian,G (2689) chess.com INT 2019}) 9. cxd5 {[%emt 0:00:22]} exd5 {[%emt 0:00:35]} 10. Ne2 {[%emt 0:00:35] unterminated} Nc6 {[%emt 0:01:39]} 11. Kf2 {[%emt 0:01:47] unterminated} Re8 {[%emt 0:02:31] unterminated} 12. h4 {[%emt 0:01:35] unterminated} h5 {[%emt 0:07:34] unterminated} 13. Bb1 {[%emt 0:03:47] unterminated} Qe7 {[%emt 0:11:40] unterminated} 14. Nf4 {[%emt 0:01:29] unterminated} g6 {[%emt 0:09:37] unterminated} 15. Ra2 {[%emt 0:13:50] unterminated} Bd7 {[%emt 0:08:49] unterminated} 16. Re2 {[%emt 0:02:42] unterminated} Rac8 {[%emt 0:05:33] unterminated} 17. Ba2 {[%emt 0:03:54] unterminated} cxd4 {[%emt 0:14:39]} 18. cxd4 {[%emt 0:00:59]} Qd6 {[%emt 0:00:37] unterminated} 19. Bb1 {[%emt 0:16:51] unterminated} Na5 {[%emt 0:03:48] unterminated} 20. Nd3 {[%emt 0:12:15] unterminated} Nc4 {[%emt 0:01:13]} 21. Qb3 {[%emt 0:01:33]} Bf5 {[%emt 0:01:42] unterminated} 22. a4 {[%emt 0:02:07]} Qb6 {[%emt 0:02:07] unterminated} (22... Rc6 $17) 23. Qa2 {[%emt 0:06:06]} Re7 {[%emt 0:00:28] unterminated} 24. Rd1 {[%emt 0:03:34] unterminated} (24. Ba3 $5 {[%cal Ra3e7]} Ree8 25. Ne5 $15) 24... Rce8 {[%emt 0:02:12]} 25. Rde1 {[%emt 0:03:05]} Qc7 {[%emt 0:00:36] unterminated} 26. Nf4 {[%emt 0:05:10]} Bxb1 {[%emt 0:00:39]} 27. Qxb1 {[%emt 0:00:01]} Qd6 {[%emt 0:02:16]} 28. Qd3 {[%emt 0:00:49] unterminated} Qa6 {[%emt 0:02:22]} 29. Rc2 {[%emt 0:03:18]} Qxa4 {[%emt 0:03:07]} 30. Nxd5 {[%emt 0:00:38]} Nxd5 {[%emt 0:00:18]} 31. Qxc4 {[%emt 0:00:36]} Qxc4 {[%emt 0:00:23]} 32. Rxc4 {[%emt 0:00:01]} Nf4 {[%emt 0:00:31] unterminated} 33. Rd1 {[%emt 0:01:57]} Nd5 {[%emt 0:03:07]} 34. e4 {[%emt 0:00:30]} Rc7 {[%emt 0:00:59]} 35. Rxc7 {[%emt 0:01:37]} Nxc7 {[%emt 0:00:05]} 36. Bf4 {[%emt 0:01:03]} Ne6 {[%emt 0:00:22]} 37. Be3 {[%emt 0:00:21]} Rc8 {[%emt 0:01:07]} 38. d5 {[%emt 0:00:26]} Rc2+ {[%emt 0:01:10]} 39. Rd2 {[%emt 0:04:36]} Rxd2+ {[%emt 0:00:57]} 40. Bxd2 {[%emt 0:00:00]} Nc5 {[%emt 0:00:42]} 41. Ke3 {[%emt 0:32:30]} Nd7 {[%emt 0:30:38]} 42. Kd4 {[%emt 0:00:56]} Kf8 {[%emt 0:01:32]} 43. e5 {[%emt 0:02:07]} Ke8 {[%emt 0:00:00]} 44. g4 {[%emt 0:00:00]} b6 {[%emt 0:00:00] unterminated} 45. gxh5 {[%emt 0:00:00]} gxh5 $18 {[%emt 0:00:00]} 46. f4 {[%emt 0:00:00] unterminated} a5 {[%emt 0:00:00]} 47. f5 {[%emt 0:00:00]} Nc5 {[%emt 0:00:00]} 48. Bg5 {[%emt 0:00:00]} Kd7 {[%emt 0:00:00]} 49. e6+ {[%emt 0:00:00]} fxe6 {[%emt 0:00:00]} 50. fxe6+ {[%emt 0:00:00]} Nxe6+ {[%emt 0:00:00]} 51. dxe6+ {[%emt 0:00:00]} Kxe6 {[%emt 0:00:00]} 52. Bd8 {[%emt 0:00:00]} Kf5 {[%emt 0:00:00]} 53. Bxb6 {[%emt 0:00:00]} Kg4 {[%emt 0:00:00]} 54. Bd8 {[%emt 0:00:00]} Kf5 {[%emt 0:00:00]} 55. Bxa5 {[%emt 0:00:00]} Kg6 {[%emt 0:00:00]} 56. Ke5 {normal} 1-0

[Event "-chT Youth Countries 2019"]
[Site "Wuerzburg"]
[Date "2019.10.06"]
[Round "7.7"]
[White "Bock, Marlon"]
[Black "Sperling, Niclas"]
[Result "1/2-1/2"]
[ECO "B08"]
[WhiteElo "1671"]
[BlackElo "1656"]
[Annotator "NA"]
[PlyCount "69"]
[EventDate "2019.10.02"]
[EventType "team-tourn"]
[EventRounds "7"]
[EventCountry "GER"]
[SourceTitle "playchess.com"]
[Source "ChessBase"]
[SourceQuality "1"]
[WhiteTeam "Thüringen"]
[BlackTeam "Brandenburg/Berlin"]
[TimeControl "40/5400+30:1800+30"]

1. d4 {[%emt 0:00:00]} Nf6 {[%emt 0:00:00]} 2. Nf3 {[%emt 0:00:00]} g6 {[%emt 0:00:00]} 3. Nc3 {[%emt 0:00:00]} Bg7 {[%emt 0:00:29]} 4. e4 {[%emt 0:00:53]} d6 {[%emt 0:00:08]} 5. Be3 {[%emt 0:00:48]} O-O {[%emt 0:00:16]} 6. Qd2 {[%emt 0:00:50]} Nbd7 {[%emt 0:05:07]} 7. Bh6 {[%emt 0:02:12]} e5 {[%emt 0:03:41]} 8. Bxg7 {[%emt 0:03:00]} Kxg7 {[%emt 0:00:02]} 9. dxe5 {[%emt 0:01:09]} Nxe5 {[%emt 0:00:13]} 10. Nxe5 {[%emt 0:01:40]} dxe5 {[%emt 0:00:03]} 11. O-O-O {[%emt 0:00:45]} Be6 {[%emt 0:01:16]} 12. Qg5 {[%emt 0:06:52]} Nd7 {[%emt 0:00:21]} 13. Qxd8 {[%emt 0:01:05]} Rfxd8 {[%emt 0:00:31]} 14. Be2 {[%emt 0:04:05]} Nc5 {[%emt 0:01:24]} 15. h4 {[%emt 0:01:56]} c6 {[%emt 0:01:50]} 16. Rxd8 {[%emt 0:07:37]} Rxd8 {[%emt 0:02:14]} 17. b4 {[%emt 0:00:41]} Nd7 {[%emt 0:03:48]} 18. Rd1 {[%emt 0:00:52]} Kf8 {[%emt 0:01:31]} 19. a4 {[%emt 0:00:39]} Ke7 {[%emt 0:00:06]} 20. a5 {[%emt 0:00:41]} Nf6 {[%emt 0:00:38]} 21. Rxd8 {[%emt 0:00:44]} Kxd8 {[%emt 0:00:01]} 22. f3 {[%emt 0:00:21]} Nh5 {[%emt 0:00:05]} 23. Na4 {[%emt 0:01:09]} Ng3 {[%emt 0:02:20]} 24. Bd3 {[%emt 0:01:44]} Kc7 {[%emt 0:00:16]} 25. c4 {[%emt 0:01:14]} b6 {[%emt 0:03:56]} 26. Kd2 {[%emt 0:08:44]} f5 {[%emt 0:00:52]} 27. axb6+ {[%emt 0:04:25]} axb6 {[%emt 0:00:08]} 28. c5 {[%emt 0:00:24]} b5 {[%emt 0:00:29]} 29. Nc3 {[%emt 0:00:34]} Bd7 {[%emt 0:05:38]} 30. Ke3 {[%emt 0:01:52]} f4+ {[%emt 0:01:31]} 31. Kf2 {[%emt 0:00:34]} Kd8 {[%emt 0:00:13]} 32. Ne2 {[%emt 0:00:16]} Nxe2 {[%emt 0:02:10]} 33. Bxe2 {[%emt 0:00:02]} Ke7 {[%emt 0:00:09]} 34. g3 {[%emt 0:00:37]} Kf6 {[%emt 0:00:18] normal} 35. g4 {normal} 1/2-1/2